fUSD/lending_fUSD_20250629
["ID","MTS","AMOUNT","RATE_DAILY","PERIOD"]
[368515820,1751194283277,-1109.31,0.00028491,3]
[368515821,1751194283287,-490.0,0.00028491,3]
[368515822,1751194283296,-1197.41,0.00028491,3]
[368515823,1751194283305,-643.14,0.00028491,3]
[368515824,1751194283315,-1261.79,0.00028491,3]
[368515825,1751194283324,-490.0,0.00028491,3]
[368515826,1751194283333,-1701.43,0.00028491,3]
[368515827,1751194283343,-1096.93,0.00028491,3]
[368515828,1751194283352,-527.61,0.00028491,3]
[368515829,1751194283361,-490.0,0.00028491,3]
[368515830,1751194283371,-490.0,0.00028491,3]
[368515831,1751194283380,-754.15,0.00028491,3]
[368515832,1751194283389,-490.0,0.00028491,3]
[368515833,1751194283398,-1787.33,0.00028491,3]
[368515834,1751194283408,-2078.89,0.00028491,3]
[368515835,1751194283417,-620.67,0.00028491,3]
[368515836,1751194283427,-1393.39,0.00028491,3]
[368515837,1751194283437,-1144.96,0.00028491,3]
[368515838,1751194283448,-1657.47,0.00028491,3]
[368515839,1751194283458,-534.8,0.00028491,3]
[368515840,1751194283467,-1096.85,0.00028491,3]
[368515841,1751194283477,-1495.26,0.00028491,3]
[368515842,1751194283486,-2028.27,0.00028491,3]
[368515843,1751194283496,-892.04,0.00028491,3]
[368515844,1751194283505,-800.8,0.00028491,3]
[368515845,1751194283514,-563.11,0.00028491,3]
[368515846,1751194283524,-803.4,0.00028491,3]
[368515847,1751194283533,-490.0,0.00028491,3]
[368515848,1751194283543,-1032.49,0.00028491,3]
[368515849,1751194283552,-818.54,0.00028491,3]
[368515850,1751194283561,-490.0,0.00028491,3]
[368515851,1751194283570,-490.0,0.00028491,3]
[368515852,1751194283580,-1748.61,0.00028491,3]
[368515853,1751194283589,-583.52,0.00028491,3]
[368515854,1751194283598,-1254.67,0.00028491,3]
[368515855,1751194283608,-1561.33,0.00028491,3]
[368515856,1751194283617,-717.28,0.00028491,3]
[368515857,1751194283626,-1235.81,0.00028491,3]
[368515858,1751194283635,-709.31,0.00028491,3]
[368515859,1751194283645,-1584.73,0.00028491,3]
[368515860,1751194283654,-1927.49,0.00028491,3]
[368515861,1751194283663,-1391.05,0.00028491,3]
[368515862,1751194283673,-921.6,0.00028491,3]
[368515863,1751194283683,-490.0,0.00028491,3]
[368515864,1751194283692,-546.89,0.00028491,3]
[368515865,1751194283703,-1532.66,0.00028491,3]
[368515866,1751194283711,-1121.28,0.00028491,3]
[368515867,1751194283721,-1915.65,0.00028491,3]
[368515868,1751194283730,-490.0,0.00028491,3]
[368515869,1751194283740,-490.0,0.00028491,3]
[368515870,1751194283750,-640.3,0.00028491,3]
[368515871,1751194283759,-496.11,0.00028491,3]
[368515872,1751194283768,-1207.27,0.00028491,3]
[368515873,1751194283777,-1080.57,0.00028491,3]
[368515874,1751194283787,-1626.37,0.00028491,3]
[368515875,1751194283796,-490.0,0.00028491,3]
[368515876,1751194283806,-1384.15,0.00028491,3]
[368515877,1751194283815,-627.27,0.00028491,3]
[368515878,1751194283825,-490.0,0.00028491,3]
[368515879,1751194283834,-964.86,0.00028491,3]
[368515880,1751194283843,-1224.5,0.00028491,3]
[368515881,1751194283852,-1005.99,0.00028491,3]
[368515882,1751194283862,-1042.94,0.00028491,3]
[368515883,1751194283872,-490.0,0.00028491,3]
[368515884,1751194283881,-490.0,0.00028491,3]
[368515885,1751194283890,-490.0,0.00028492,3]
[368515886,1751194283900,-490.0,0.00028492,3]
[368515887,1751194283909,-490.0,0.00028492,3]
[368515888,1751194283920,-490.0,0.00028492,3]
[368515889,1751194283929,-490.0,0.00028492,3]
[368515890,1751194283938,-490.0,0.00028492,3]
[368515891,1751194283948,-490.0,0.00028492,3]
[368515892,1751194283957,-508.9912156,0.00028492,3]
[368515893,1751194283967,-300.0,0.00028492,3]
[368515894,1751194283978,-490.0,0.00028492,3]
[368515895,1751194283988,-490.0,0.00028492,3]
[368515896,1751194283997,-490.0,0.00028492,3]
[368515897,1751194284007,-490.0,0.00028492,3]
[368515898,1751194284017,-538.47189794,0.00028492,3]
[368515899,1751194284027,-490.0,0.00028492,3]
[368515900,1751194284036,-490.0,0.00028492,3]
[368515901,1751194284047,-490.0,0.00028492,3]
[368515902,1751194284057,-490.0,0.00028492,3]
[368515903,1751194284066,-490.0,0.00028492,3]
[368515904,1751194284074,-628.54485636,0.00028492,3]
[368515905,1751194284083,-490.0,0.00028492,3]
[368515906,1751194284092,-686.32,0.00028492,3]
[368515907,1751194284100,-490.0,0.00028492,3]
[368515908,1751194284109,-490.0,0.00028492,3]
[368515909,1751194284118,-690.4,0.00028492,3]
[368515910,1751194284127,-490.0,0.00028492,3]
[368515911,1751194284137,-167.30122564,0.00028492,3]
[368515912,1751194284145,-490.0,0.00028492,3]
[368515913,1751194284228,-513.52,0.00028492,3]
[368515914,1751194284238,-490.0,0.00028492,3]
[368515915,1751194284247,-490.0,0.00028492,3]
[368515916,1751194284257,-490.0,0.00028492,3]
[368515917,1751194284267,-490.0,0.00028492,3]
[368515918,1751194284277,-490.0,0.00028492,3]
[368515919,1751194284287,-600.29,0.00028492,3]
[368515920,1751194284297,-490.0,0.00028492,3]
[368515921,1751194284306,-490.0,0.00028492,3]
[368515922,1751194284316,-490.0,0.00028492,3]
[368515923,1751194284325,-490.0,0.00028492,3]
[368515924,1751194284335,-490.0,0.00028492,3]
[368515925,1751194284345,-576.21365583,0.00028492,3]
[368515926,1751194284355,-490.0,0.00028492,3]
[368515927,1751194284364,-302.48552418,0.00028492,3]
[368515928,1751194284374,-490.0,0.00028492,3]
[368515929,1751194284383,-490.0,0.00028492,3]
[368515930,1751194284392,-490.0,0.00028492,3]
[368515931,1751194284401,-490.0,0.00028492,3]
[368515932,1751194284410,-490.0,0.00028492,3]
[368515933,1751194284419,-490.0,0.00028492,3]
[368515934,1751194284428,-490.0,0.00028492,3]
[368515935,1751194284437,-490.0,0.00028492,3]
[368515936,1751194284446,-492.71,0.00028492,3]
[368515937,1751194284456,-490.0,0.00028492,3]
[368515938,1751194284465,-490.0,0.00028492,3]
[368515939,1751194284475,-4103.11830372,0.00028493,4]
[368515940,1751194284483,-329877.5327368,0.00028493,4]
[368515941,1751194284492,-490.0,0.00028493,3]
[368515942,1751194284501,-490.0,0.00028493,3]
[368515943,1751194284511,-490.0,0.00028493,3]
[368515944,1751194284520,-490.0,0.00028493,3]
[368515945,1751194284530,-329.205099,0.00028493,3]
[368515946,1751194284539,-490.0,0.00028493,3]
[368515947,1751194284549,-490.0,0.00028493,3]
[368515948,1751194284559,-490.0,0.00028493,3]
[368515949,1751194284569,-490.0,0.00028493,3]
[368515950,1751194284579,-490.0,0.00028493,3]
[368515951,1751194284588,-490.0,0.00028493,3]
[368515952,1751194284598,-490.0,0.00028493,3]
[368515953,1751194284608,-490.0,0.00028493,3]
[368515954,1751194284618,-490.0,0.00028493,3]
[368515955,1751194284627,-490.0,0.00028493,3]
[368515956,1751194284636,-490.0,0.00028493,3]
[368515957,1751194284646,-490.0,0.00028493,3]
[368515958,1751194284655,-554.36,0.00028493,3]
[368515959,1751194284666,-490.0,0.00028493,3]
[368515960,1751194284675,-490.0,0.00028493,3]
[368515961,1751194284684,-490.0,0.00028493,3]
[368515962,1751194284694,-490.0,0.00028493,3]
[368515963,1751194284704,-632.51,0.00028493,3]
[368515964,1751194284715,-490.0,0.00028493,3]
[368515965,1751194284726,-490.0,0.00028493,3]
[368515966,1751194284736,-532.4,0.00028493,3]
[368515967,1751194284745,-363.20223903,0.00028493,3]
[368515968,1751194284755,-490.0,0.00028493,3]
[368515969,1751194284764,-490.0,0.00028493,3]
[368515970,1751194284773,-508.12,0.00028493,3]
[368515971,1751194284783,-490.0,0.00028493,3]
[368515972,1751194284792,-490.0,0.00028493,3]
[368515973,1751194284801,-701.73,0.00028493,3]
[368515974,1751194284811,-490.0,0.00028493,3]
[368515975,1751194284820,-490.0,0.00028493,3]
[368515976,1751194284830,-539.75397174,0.00028493,3]
[368515977,1751194284840,-490.0,0.00028493,3]
[368515978,1751194284850,-490.0,0.00028493,3]
[368515979,1751194284859,-764.95,0.00028493,3]
[368515980,1751194284869,-490.0,0.00028493,3]
[368515981,1751194284879,-490.0,0.00028493,3]
[368515982,1751194284888,-490.0,0.00028493,3]
[368515983,1751194284898,-490.0,0.00028493,3]
[368515984,1751194284907,-490.0,0.00028493,3]
[368515985,1751194284917,-490.0,0.00028493,3]
[368515986,1751194284927,-490.0,0.00028493,3]
[368515987,1751194284936,-953.82,0.00028493,3]
[368515988,1751194284945,-490.0,0.00028493,3]
[368515989,1751194284955,-603.44,0.00028493,3]
[368515990,1751194284964,-633.93,0.00028493,3]
[368515991,1751194284978,-490.0,0.00028493,3]
[368515992,1751194284988,-864.91,0.00028493,3]
[368515993,1751194284997,-490.0,0.00028493,3]
[368515994,1751194285006,-497.74,0.00028493,3]
[368515995,1751194285017,-490.0,0.00028493,3]
[368515996,1751194285026,-490.0,0.00028493,3]
[368515997,1751194285036,-490.0,0.00028493,3]
[368515998,1751194285046,-490.0,0.00028493,3]
[368515999,1751194285055,-490.0,0.00028493,3]
[368516000,1751194285066,-490.0,0.00028493,3]
[368516001,1751194285075,-756.13,0.00028493,3]
[368516002,1751194285084,-490.0,0.00028493,3]
[368516003,1751194285093,-542.44,0.00028493,3]
[368516004,1751194285102,-1332.54,0.00028493,3]
[368516005,1751194285110,-863.82,0.00028493,3]
[368516006,1751194285120,-490.0,0.00028493,3]
[368516007,1751194285129,-490.0,0.00028493,3]
[368516008,1751194285139,-490.0,0.00028493,3]
[368516009,1751194285147,-591.84,0.00028493,3]
[368516010,1751194285157,-490.0,0.00028493,3]
[368516011,1751194285167,-490.0,0.00028493,3]
[368516012,1751194285175,-665.61,0.00028493,3]
[368516013,1751194285185,-769.64,0.00028493,3]
[368516014,1751194285194,-490.0,0.00028493,3]
[368516015,1751194285203,-555.79,0.00028493,3]
[368516016,1751194285214,-490.0,0.00028493,3]
[368516017,1751194285224,-490.0,0.00028493,3]
[368516018,1751194285233,-627.43,0.00028493,3]
[368516019,1751194285242,-491.22,0.00028493,3]
[368516020,1751194285252,-490.0,0.00028493,3]
[368516021,1751194285261,-617.55,0.00028493,3]
[368516022,1751194285270,-490.0,0.00028493,3]
[368516023,1751194285280,-1124.81,0.00028493,3]
[368516024,1751194285289,-621.58,0.00028493,3]
[368516025,1751194285299,-1265.66,0.00028493,3]
[368516026,1751194285307,-1066.44,0.00028493,3]
[368516027,1751194285317,-490.0,0.00028493,3]
[368516028,1751194285328,-606.66,0.00028493,3]
[368516029,1751194285338,-512.47429776,0.00028493,3]
[368516030,1751194285347,-1063.39,0.00028493,3]
[368516031,1751194285356,-1075.06,0.00028493,3]
[368516032,1751194285366,-596.29,0.00028493,3]
[368516033,1751194285375,-490.0,0.00028493,3]
[368516034,1751194285385,-490.0,0.00028493,3]
[368516035,1751194285394,-620.94,0.00028493,3]
[368516036,1751194285403,-490.0,0.00028493,3]
[368516037,1751194285412,-490.0,0.00028493,3]
[368516038,1751194285421,-490.0,0.00028493,3]
[368516039,1751194285431,-667.18,0.00028493,3]
[368516040,1751194285440,-684.75,0.00028493,3]
[368516041,1751194285450,-687.84,0.00028493,3]
[368516042,1751194285459,-490.0,0.00028493,3]
[368516043,1751194285468,-1683.35,0.00028493,3]
[368516044,1751194285478,-925.73,0.00028493,3]
[368516045,1751194285487,-884.56,0.00028493,3]
[368516046,1751194285496,-490.0,0.00028493,3]
[368516047,1751194285505,-521.5,0.00028493,3]
[368516048,1751194285515,-1254.49,0.00028493,3]
[368516049,1751194285524,-558.94,0.00028493,3]
[368516050,1751194285534,-490.0,0.00028493,3]
[368516051,1751194285543,-156.69801209,0.00028493,3]
[368516052,1751194285552,-362.52685094,0.00028493,3]
[368516053,1751194285562,-1250.48,0.00028493,3]
[368516054,1751194285571,-490.0,0.00028493,3]
[368516055,1751194285580,-490.0,0.00028493,3]
[368516056,1751194285589,-490.0,0.00028493,3]
[368516057,1751194285599,-681.06,0.00028493,3]
[368516058,1751194285608,-877.54,0.00028493,3]
[368516059,1751194285617,-490.0,0.00028493,3]
[368516060,1751194285626,-1517.03,0.00028493,3]
[368516061,1751194285635,-490.0,0.00028493,3]
[368516062,1751194285644,-490.0,0.00028493,3]
[368516063,1751194285654,-490.0,0.00028493,3]
[368516064,1751194285664,-586.92,0.00028493,3]
[368516065,1751194285673,-760.76,0.00028493,3]
[368516066,1751194285683,-490.0,0.00028493,3]
[368516067,1751194285692,-490.0,0.00028493,3]
[368516068,1751194285702,-1020.66,0.00028493,3]
[368516069,1751194285711,-1866.57,0.00028493,3]
[368516070,1751194285720,-1288.09,0.00028493,3]
[368516071,1751194285730,-776.5,0.00028493,3]
[368516072,1751194285740,-490.0,0.00028493,3]
[368516073,1751194285750,-490.0,0.00028493,3]
[368516074,1751194285759,-640.5,0.00028493,3]
[368516075,1751194285769,-490.0,0.00028493,3]
[368516076,1751194285779,-176.44251854,0.00028493,3]
[368516077,1751194285788,-499.32,0.00028493,3]
[368516078,1751194285798,-499.32,0.00028493,3]
[368516079,1751194285807,-689.12,0.00028493,3]
[368516080,1751194285817,-759.09,0.00028493,3]
[368516081,1751194285826,-622.49,0.00028493,3]
[368516082,1751194285835,-930.36,0.00028493,3]
[368516083,1751194285845,-490.0,0.00028493,3]
[368516084,1751194285855,-936.48,0.00028493,3]
[368516085,1751194285864,-1920.98,0.00028493,3]
[368516086,1751194285874,-490.0,0.00028493,3]
[368516087,1751194285884,-490.0,0.00028493,3]
[368516088,1751194285894,-814.04,0.00028493,3]
[368516089,1751194285904,-1148.44,0.00028493,3]
[368516090,1751194285913,-1544.17,0.00028493,3]
[368516091,1751194285922,-490.0,0.00028493,3]
[368516092,1751194285931,-1773.34,0.00028493,3]
[368516093,1751194285940,-490.0,0.00028493,3]
[368516094,1751194285949,-490.0,0.00028493,3]
[368516095,1751194285959,-490.0,0.00028493,3]
[368516096,1751194285970,-522.27,0.00028493,3]
[368516097,1751194285981,-501.36,0.00028493,3]
[368516098,1751194285991,-490.0,0.00028493,3]
[368516099,1751194286000,-552.8578921,0.00028493,3]
[368516100,1751194286009,-490.0,0.00028493,3]
[368516101,1751194286018,-648.51,0.00028493,3]
[368516102,1751194286028,-803.16,0.00028493,3]
[368516103,1751194286039,-1313.11,0.00028493,3]
[368516104,1751194286049,-490.0,0.00028493,3]
[368516105,1751194286059,-490.0,0.00028493,3]
[368516106,1751194286068,-490.0,0.00028493,3]
[368516107,1751194286077,-648.86,0.00028493,3]
[368516108,1751194286086,-751.58,0.00028493,3]
[368516109,1751194286096,-1739.9,0.00028493,3]
[368516110,1751194286105,-514.77,0.00028493,3]
[368516111,1751194286115,-490.0,0.00028493,3]
[368516112,1751194286124,-490.0,0.00028493,3]
[368516113,1751194286135,-490.0,0.00028493,3]
[368516114,1751194286145,-490.0,0.00028493,3]
[368516115,1751194286155,-1125.58,0.00028493,3]
[368516116,1751194286165,-667.65,0.00028493,3]
[368516117,1751194286175,-1097.79,0.00028493,3]
[368516118,1751194286186,-745.5,0.00028493,3]
[368516119,1751194286198,-490.0,0.00028493,3]
[368516120,1751194286208,-490.0,0.00028493,3]
[368516121,1751194286218,-492.31,0.00028493,3]
[368516122,1751194286228,-847.7,0.00028493,3]
[368516123,1751194286237,-641.45,0.00028493,3]
[368516124,1751194286248,-1986.36,0.00028493,3]
[368516125,1751194286258,-490.0,0.00028493,3]
[368516126,1751194286268,-490.0,0.00028493,3]
[368516127,1751194286277,-490.0,0.00028493,3]
[368516128,1751194286287,-810.14,0.00028493,3]
[368516129,1751194286296,-613.92,0.00028493,3]
[368516130,1751194286306,-568.22,0.00028493,3]
[368516131,1751194286316,-490.0,0.00028493,3]
[368516132,1751194286326,-490.0,0.00028493,3]
[368516133,1751194286335,-682.37,0.00028493,3]
[368516134,1751194286345,-490.0,0.00028493,3]
[368516135,1751194286354,-703.34,0.00028493,3]
[368516136,1751194286363,-1604.97,0.00028493,3]
[368516137,1751194286371,-611.61,0.00028493,3]
[368516138,1751194286380,-1548.89,0.00028493,3]
[368516139,1751194286389,-599.49777853,0.00028493,3]
[368516140,1751194286398,-490.0,0.00028493,3]
[368516141,1751194286407,-490.0,0.00028493,3]
[368516142,1751194286416,-490.0,0.00028493,3]
[368516143,1751194286425,-648.53,0.00028493,3]
[368516144,1751194286434,-929.36,0.00028493,3]
[368516145,1751194286443,-490.0,0.00028493,3]
[368516146,1751194286453,-490.0,0.00028493,3]
[368516147,1751194286462,-490.0,0.00028493,3]
[368516148,1751194286471,-490.0,0.00028493,3]
[368516149,1751194286481,-708.68,0.00028493,3]
[368516150,1751194286490,-490.0,0.00028493,3]
[368516151,1751194286499,-490.0,0.00028493,3]
[368516152,1751194286508,-490.0,0.00028493,3]
[368516153,1751194286517,-490.0,0.00028493,3]
[368516154,1751194286526,-490.0,0.00028493,3]
[368516155,1751194286535,-490.0,0.00028493,3]
[368516156,1751194286544,-1367.54,0.00028493,3]
[368516157,1751194286552,-1196.86,0.00028493,3]
[368516158,1751194286562,-946.15,0.00028493,3]
[368516159,1751194286571,-490.0,0.00028493,3]
[368516160,1751194286580,-490.0,0.00028493,3]
[368516161,1751194286590,-490.0,0.00028493,3]
[368516162,1751194286599,-490.0,0.00028493,3]
[368516163,1751194286609,-887.21,0.00028493,3]
[368516164,1751194286620,-1881.05,0.00028493,3]
[368516165,1751194286631,-490.0,0.00028493,3]
[368516166,1751194286641,-490.0,0.00028493,3]
[368516167,1751194286651,-680.84,0.00028493,3]
[368516168,1751194286661,-616.22,0.00028493,3]
[368516169,1751194286670,-1625.01,0.00028493,3]
[368516170,1751194286679,-490.0,0.00028493,3]
[368516171,1751194286689,-490.0,0.00028493,3]
[368516172,1751194286699,-684.45,0.00028493,3]
[368516173,1751194286708,-435.79430888,0.00028493,3]
[368516174,1751194286717,-578.97,0.00028493,3]
[368516175,1751194286728,-534.15,0.00028493,3]
[368516176,1751194286737,-490.0,0.00028493,3]
[368516177,1751194286746,-490.0,0.00028493,3]
[368516178,1751194286755,-490.0,0.00028493,3]
[368516179,1751194286764,-490.0,0.00028493,3]
[368516180,1751194286774,-871.36,0.00028493,3]
[368516181,1751194286783,-529.2,0.00028493,3]
[368516182,1751194286793,-490.0,0.00028493,3]
[368516183,1751194286802,-612.59,0.00028493,3]
[368516184,1751194286811,-499.86,0.00028493,3]
[368516185,1751194286820,-1690.95,0.00028493,3]
[368516186,1751194286829,-972.25,0.00028493,3]
[368516187,1751194286838,-490.0,0.00028493,3]
[368516188,1751194286847,-490.0,0.00028493,3]
[368516189,1751194286857,-1999.98,0.00028493,3]
[368516190,1751194286866,-933.91,0.00028493,3]
[368516191,1751194286875,-983.04,0.00028493,3]
[368516192,1751194286884,-567.17,0.00028493,3]
[368516193,1751194286893,-490.0,0.00028493,3]
[368516194,1751194286903,-747.2,0.00028493,3]
[368516195,1751194286912,-218.80865645,0.00028493,3]
[368516196,1751194286922,-592.0690619,0.00028493,3]
[368516197,1751194286931,-3120.96,0.00028493,3]
[368516198,1751194286940,-1080.24,0.00028493,3]
[368516199,1751194286950,-337.80784955,0.00028493,3]
[368516200,1751194286961,-1141.22,0.00028493,3]
[368516201,1751194286974,-1156.07,0.00028493,3]
[368516202,1751194286984,-490.0,0.00028493,3]
[368516203,1751194286994,-5234.52,0.00028493,3]
[368516204,1751194287003,-723.63,0.00028493,3]
[368516205,1751194287013,-677.66,0.00028493,3]
[368516206,1751194287024,-534.04,0.00028493,3]
[368516207,1751194287034,-6702.81,0.00028493,3]
[368516208,1751194287044,-490.0,0.00028493,3]
[368516209,1751194287053,-495.35263122,0.00028493,3]
[368516210,1751194287063,-795.02175,0.00028493,3]
[368516211,1751194287072,-873.47,0.00028493,3]
[368516212,1751194287081,-1366.91,0.00028493,3]
[368516213,1751194287091,-5532.56,0.00028493,3]
[368516214,1751194287100,-490.0,0.00028493,3]
[368516215,1751194287110,-1135.48,0.00028493,3]
[368516216,1751194287119,-3684.53,0.00028493,3]
[368516217,1751194287128,-490.0,0.00028493,3]
[368516218,1751194287139,-1476.15,0.00028493,3]
[368516219,1751194287149,-490.0,0.00028493,3]
[368516220,1751194287159,-1511.71,0.00028493,3]
[368516221,1751194287168,-490.0,0.00028493,3]
[368516222,1751194287178,-490.0,0.00028493,3]
[368516223,1751194287187,-103112.27,0.00028493,3]
[368516224,1751194287196,-827.69,0.00028493,3]
[368516225,1751194287205,-1080.39,0.00028493,3]
[368516226,1751194287214,-3680.78,0.00028493,3]
[368516227,1751194287223,-657.08,0.00028493,3]
[368516228,1751194287233,-1084.7,0.00028493,3]
[368516229,1751194287243,-818.64,0.00028493,3]
[368516230,1751194287252,-490.0,0.00028493,3]
[368516231,1751194287261,-1676.03,0.00028493,3]
[368516232,1751194287271,-490.0,0.00028493,3]
[368516233,1751194287281,-1841.91,0.00028493,3]
[368516234,1751194287290,-808.31,0.00028493,3]
[368516235,1751194287299,-1771.19,0.00028493,3]
[368516236,1751194287309,-777.13,0.00028493,3]
[368516237,1751194287318,-1397.73,0.00028493,3]
[368516238,1751194287328,-1103.86,0.00028493,3]
[368516239,1751194287338,-577.88,0.00028493,3]
[368516240,1751194287347,-2621.52,0.00028493,3]
[368516241,1751194287356,-490.0,0.00028493,3]
[368516242,1751194287366,-490.0,0.00028493,3]
[368516243,1751194287375,-490.0,0.00028493,3]
[368516244,1751194287385,-1009.96,0.00028493,3]
[368516245,1751194287394,-1009.67,0.00028493,3]
[368516246,1751194287403,-1391.51,0.00028493,3]
[368516247,1751194287413,-490.0,0.00028493,3]
[368516248,1751194287423,-490.0,0.00028493,3]
[368516249,1751194287433,-625.681203,0.00028493,3]
[368516250,1751194287444,-2403.19,0.00028493,3]
[368516251,1751194287454,-963.8,0.00028493,3]
[368516252,1751194287463,-504.64,0.00028493,3]
[368516253,1751194287474,-490.0,0.00028493,3]
[368516254,1751194287483,-867.3,0.00028493,3]
[368516255,1751194287493,-796.93,0.00028493,3]
[368516256,1751194287503,-496.03,0.00028493,3]
[368516257,1751194287512,-1622.82,0.00028493,3]
[368516258,1751194287522,-1469.3,0.00028493,3]
[368516259,1751194287532,-1096.54,0.00028493,3]
[368516260,1751194287542,-994.82,0.00028493,3]
[368516261,1751194287552,-585.7,0.00028493,3]
[368516262,1751194287562,-490.0,0.00028493,3]
[368516263,1751194287572,-986.61,0.00028493,3]
[368516264,1751194287583,-1445.24,0.00028493,3]
[368516265,1751194287594,-1284.88,0.00028493,3]
[368516266,1751194287605,-1733.58,0.00028493,3]
[368516267,1751194287615,-1113.61,0.00028493,3]
[368516268,1751194287625,-765.718893,0.00028493,3]
[368516269,1751194287635,-5329.02,0.00028493,3]
[368516270,1751194287645,-711.13,0.00028493,3]
[368516271,1751194287655,-1340.55,0.00028493,3]
[368516272,1751194287665,-546.693834,0.00028493,3]
[368516273,1751194287675,-490.0,0.00028493,3]
[368516274,1751194287685,-529.494333,0.00028493,3]
[368516275,1751194287695,-490.0,0.00028493,3]
[368516276,1751194287704,-2678.7,0.00028493,3]
[368516277,1751194287714,-3083.58,0.00028493,3]
[368516278,1751194287723,-490.0,0.00028493,3]
[368516279,1751194287733,-490.0,0.00028493,3]
[368516280,1751194287743,-490.0,0.00028493,3]
[368516281,1751194287753,-795.8,0.00028493,3]
[368516282,1751194287763,-490.0,0.00028493,3]
[368516283,1751194287772,-2825.66,0.00028493,3]
[368516284,1751194287782,-765.55,0.00028493,3]
[368516285,1751194287793,-490.0,0.00028493,3]
[368516286,1751194287802,-956.04,0.00028493,3]
[368516287,1751194287812,-1905.65,0.00028493,3]
[368516288,1751194287822,-490.0,0.00028493,3]
[368516289,1751194287832,-14415.41,0.00028493,3]
[368516290,1751194287841,-561.38,0.00028493,3]
[368516291,1751194287851,-1701.67,0.00028493,3]
[368516292,1751194287861,-496.82,0.00028493,3]
[368516293,1751194287871,-1039.13,0.00028493,3]
[368516294,1751194287881,-2176.77,0.00028493,3]
[368516295,1751194287891,-490.0,0.00028493,3]
[368516296,1751194287902,-1044.7,0.00028493,3]
[368516297,1751194287912,-684.856176,0.00028493,3]
[368516298,1751194287922,-1903.71,0.00028493,3]
[368516299,1751194287931,-490.0,0.00028493,3]
[368516300,1751194287941,-490.0,0.00028493,3]
[368516301,1751194287950,-469.899209,0.00028493,3]
[368516302,1751194287960,-467.660477,0.00028493,3]
[368516303,1751194287972,-1422.17,0.00028493,3]
[368516304,1751194287982,-490.0,0.00028493,3]
[368516305,1751194287991,-1130.93,0.00028493,3]
[368516306,1751194288001,-830.33,0.00028493,3]
[368516307,1751194288012,-1572.11,0.00028493,3]
[368516308,1751194288021,-2670.56,0.00028493,3]
[368516309,1751194288033,-604.44,0.00028493,3]
[368516310,1751194288043,-671.05,0.00028493,3]
[368516311,1751194288053,-490.0,0.00028493,3]
[368516312,1751194288062,-875.56,0.00028493,3]
[368516313,1751194288072,-1991.26,0.00028493,3]
[368516314,1751194288082,-387.92126996,0.00028493,3]
[368516315,1751194288092,-490.0,0.00028493,3]
[368516316,1751194288102,-490.0,0.00028493,3]
[368516317,1751194288111,-490.0,0.00028493,3]
[368516318,1751194288121,-498.72,0.00028493,3]
[368516319,1751194288131,-583.28,0.00028493,3]